[Event "Titled Tuesday Blitz March 14 Early 2023"]
[White "Ozates, Tuna"]
[Black "Ozen, Bahadir"]
[WhiteFideId "6354521"]
[BlackFideId "6337058"]
[WhiteElo "2151"]
[BlackElo "2503"]
[Result "0-1"]
[Round "05"]
[TimeControl "180+2"]
[Date "2023.03.14"]
[WhiteClock "0:00:15"]
[BlackClock "0:00:25"]

1. e4 {[%clk 0:03:00]}  e5 {[%clk 0:03:00]} 2. Nf3 {[%clk 0:03:00]}  Nc6 {[%clk 0:03:01]} 3. Bc4 {[%clk 0:03:01]}  Bc5 {[%clk 0:03:01]} 4. c3 {[%clk 0:03:01]}  Nf6 {[%clk 0:03:01]} 5. d3 {[%clk 0:03:02]}  d6 {[%clk 0:03:01]} 6. Bb3 {[%clk 0:03:01]}  O-O {[%clk 0:02:56]} 7. Nbd2 {[%clk 0:03:00]}  a5 {[%clk 0:02:51]} 8. h3 {[%clk 0:02:59]}  Be6 {[%clk 0:02:45]} 9. a4 {[%clk 0:02:55]}  Bxb3 {[%clk 0:02:34]} 10. Nxb3 {[%clk 0:02:54]}  Bb6 {[%clk 0:02:33]} 11. O-O {[%clk 0:02:55]}  h6 {[%clk 0:02:32]} 12. Re1 {[%clk 0:02:51]}  Re8 {[%clk 0:02:31]} 13. Nbd2 {[%clk 0:02:36]}  d5 {[%clk 0:02:30]} 14. Qe2 {[%clk 0:02:34]}  Qd7 {[%clk 0:02:07]} 15. Nh4 {[%clk 0:02:33]}  Rad8 {[%clk 0:02:06]} 16. exd5 {[%clk 0:02:21]}  Nxd5 {[%clk 0:02:05]} 17. Nc4 {[%clk 0:02:21]}  Ba7 {[%clk 0:02:00]} 18. Qf3 {[%clk 0:02:20]}  Nde7 {[%clk 0:01:51]} 19. Rd1 {[%clk 0:01:38]}  g5 {[%clk 0:01:18]} 20. Qg3 {[%clk 0:01:36]}  f6 {[%clk 0:01:18]} 21. Be3 {[%clk 0:01:25]}  Kh7 {[%clk 0:01:11]} 22. Bxa7 {[%clk 0:01:20]}  gxh4 {[%clk 0:01:01]} 23. Qxh4 {[%clk 0:01:20]}  Nxa7 {[%clk 0:00:59]} 24. Qxf6 {[%clk 0:01:20]}  Ng6 {[%clk 0:00:59]} 25. Qf3 {[%clk 0:01:07]}  Nc6 {[%clk 0:00:59]} 26. Re1 {[%clk 0:00:55]}  Rf8 {[%clk 0:00:56]} 27. Qh5 {[%clk 0:00:49]}  Qf5 {[%clk 0:00:49]} 28. Qxf5 {[%clk 0:00:39]}  Rxf5 {[%clk 0:00:50]} 29. Ne3 {[%clk 0:00:39]}  Rf7 {[%clk 0:00:49]} 30. b4 {[%clk 0:00:34]}  axb4 {[%clk 0:00:49]} 31. cxb4 {[%clk 0:00:35]}  Nxb4 {[%clk 0:00:50]} 32. Reb1 {[%clk 0:00:35]}  c5 {[%clk 0:00:48]} 33. a5 {[%clk 0:00:29]}  Rxd3 {[%clk 0:00:46]} 34. Rc1 {[%clk 0:00:29]}  Rc7 {[%clk 0:00:40]} 35. Rab1 {[%clk 0:00:28]}  Rdd7 {[%clk 0:00:40]} 36. Nc4 {[%clk 0:00:27]}  Nd3 {[%clk 0:00:36]} 37. Rc3 {[%clk 0:00:23]}  Ngf4 {[%clk 0:00:35]} 38. Kf1 {[%clk 0:00:21]}  e4 {[%clk 0:00:35]} 39. Nb6 {[%clk 0:00:18]}  Nd5 {[%clk 0:00:30]} 40. Rc4 {[%clk 0:00:14]}  Nxb6 {[%clk 0:00:25]} 41. axb6 {[%clk 0:00:15]}  Rc6 {[%clk 0:00:25]} 42. Rxe4 {[%clk 0:00:15]}  c4 {[%clk 0:00:25]} 0-1


[Site "https://www.chess.com"]

[Event "Titled Tuesday Blitz March 14 Early 2023"]
[White "Al-Tarboush, Ward"]
[Black "Vakhlamov, Igor L."]
[WhiteFideId "7601450"]
[BlackFideId "24126748"]
[WhiteElo "2257"]
[BlackElo "2400"]
[Result "0-1"]
[Round "05"]
[TimeControl "180+2"]
[Date "2023.03.14"]
[WhiteClock "0:00:01"]
[BlackClock "0:00:04"]

1. e4 {[%clk 0:03:00]}  c5 {[%clk 0:02:59]} 2. Nf3 {[%clk 0:03:00]}  e6 {[%clk 0:03:00]} 3. d4 {[%clk 0:03:00]}  cxd4 {[%clk 0:03:00]} 4. Nxd4 {[%clk 0:03:01]}  Nf6 {[%clk 0:03:01]} 5. Nc3 {[%clk 0:03:02]}  Nc6 {[%clk 0:03:01]} 6. Bf4 {[%clk 0:03:02]}  Bc5 {[%clk 0:02:46]} 7. Ndb5 {[%clk 0:02:48]}  O-O {[%clk 0:02:45]} 8. e5 {[%clk 0:02:48]}  Ne8 {[%clk 0:02:20]} 9. Bd3 {[%clk 0:02:48]}  a6 {[%clk 0:02:17]} 10. Ne4 {[%clk 0:02:33]}  Bxf2+ {[%clk 0:01:32]} 11. Nxf2 {[%clk 0:02:32]}  axb5 {[%clk 0:01:32]} 12. Qh5 {[%clk 0:02:18]}  f5 {[%clk 0:01:31]} 13. O-O {[%clk 0:02:01]}  Nc7 {[%clk 0:01:17]} 14. Rae1 {[%clk 0:01:59]}  Qe8 {[%clk 0:01:14]} 15. Qh4 {[%clk 0:01:57]}  b6 {[%clk 0:01:10]} 16. Re3 {[%clk 0:01:50]}  Nd5 {[%clk 0:01:09]} 17. Rh3 {[%clk 0:01:50]}  Nxf4 {[%clk 0:01:00]} 18. Qxf4 {[%clk 0:01:47]}  b4 {[%clk 0:00:50]} 19. Ng4 {[%clk 0:01:41]}  Ba6 {[%clk 0:00:44]} 20. Qg5 {[%clk 0:01:10]}  Qg6 {[%clk 0:00:31]} 21. Qh4 {[%clk 0:00:31]}  Bxd3 {[%clk 0:00:22]} 22. Nf6+ {[%clk 0:00:31]}  Rxf6 {[%clk 0:00:19]} 23. exf6 {[%clk 0:00:31]}  Bxf1 {[%clk 0:00:20]} 24. Rg3 {[%clk 0:00:31]}  Ne5 {[%clk 0:00:06]} 25. Rxg6 {[%clk 0:00:22]}  Nxg6 {[%clk 0:00:07]} 26. Qxb4 {[%clk 0:00:21]}  Ba6 {[%clk 0:00:07]} 27. fxg7 {[%clk 0:00:18]}  Bb7 {[%clk 0:00:06]} 28. Qxb6 {[%clk 0:00:16]}  Be4 {[%clk 0:00:06]} 29. Qb3 {[%clk 0:00:07]}  Kxg7 {[%clk 0:00:05]} 30. a4 {[%clk 0:00:07]}  Kf7 {[%clk 0:00:03]} 31. c4 {[%clk 0:00:04]}  Bc6 {[%clk 0:00:03]} 32. Qh3 {[%clk 0:00:03]}  Rxa4 {[%clk 0:00:03]} 33. Qxh7+ {[%clk 0:00:03]}  Kf6 {[%clk 0:00:04]} 34. b3 {[%clk 0:00:03]}  Ra2 {[%clk 0:00:05]} 35. Qh6 {[%clk 0:00:03]}  Rxg2+ {[%clk 0:00:05]} 36. Kf1 {[%clk 0:00:03]}  Rg4 {[%clk 0:00:06]} 37. Qe3 {[%clk 0:00:03]}  Nf4 {[%clk 0:00:05]} 38. Qd4+ {[%clk 0:00:03]}  Kf7 {[%clk 0:00:06]} 39. Qh8 {[%clk 0:00:03]}  Rg7 {[%clk 0:00:04]} 40. b4 {[%clk 0:00:02]}  Be4 {[%clk 0:00:04]} 41. b5 {[%clk 0:00:02]}  Bd3+ {[%clk 0:00:04]} 42. Kf2 {[%clk 0:00:03]}  Bxc4 {[%clk 0:00:05]} 43. b6 {[%clk 0:00:04]}  Bd5 {[%clk 0:00:05]} 44. Ke3 {[%clk 0:00:04]}  Ng6 {[%clk 0:00:04]} 45. Qd8 {[%clk 0:00:03]}  Nf8 {[%clk 0:00:04]} 46. Kd4 {[%clk 0:00:02]}  Rg4+ {[%clk 0:00:04]} 47. Kc3 {[%clk 0:00:01]}  Bc6 {[%clk 0:00:04]} 0-1


[Site "https://www.chess.com"]

[Event "Titled Tuesday Blitz March 14 Early 2023"]
[White "Turgut, Aydin"]
[Black "Aditya Mittal"]
[WhiteFideId "2078791"]
[BlackFideId "35042025"]
[WhiteElo "2259"]
[BlackElo "2396"]
[Result "0-1"]
[Round "05"]
[TimeControl "180+2"]
[Date "2023.03.14"]
[WhiteClock "0:00:01"]
[BlackClock "0:00:09"]

1. e4 {[%clk 0:03:00]}  e5 {[%clk 0:03:00]} 2. Nf3 {[%clk 0:03:01]}  Nc6 {[%clk 0:03:01]} 3. Bc4 {[%clk 0:03:01]}  Nf6 {[%clk 0:03:01]} 4. d3 {[%clk 0:03:01]}  d5 {[%clk 0:03:01]} 5. exd5 {[%clk 0:03:00]}  Nxd5 {[%clk 0:03:02]} 6. O-O {[%clk 0:02:53]}  Be7 {[%clk 0:03:02]} 7. Re1 {[%clk 0:02:49]}  f6 {[%clk 0:03:03]} 8. h3 {[%clk 0:02:25]}  Be6 {[%clk 0:03:01]} 9. d4 {[%clk 0:02:18]}  Ne3 {[%clk 0:02:54]} 10. Bxe3 {[%clk 0:02:16]}  Bxc4 {[%clk 0:02:54]} 11. Nbd2 {[%clk 0:02:14]}  Bf7 {[%clk 0:02:51]} 12. dxe5 {[%clk 0:02:14]}  fxe5 {[%clk 0:02:52]} 13. Qe2 {[%clk 0:02:00]}  O-O {[%clk 0:02:51]} 14. Rad1 {[%clk 0:01:56]}  Qc8 {[%clk 0:02:37]} 15. Ne4 {[%clk 0:01:51]}  Qf5 {[%clk 0:02:23]} 16. Bg5 {[%clk 0:01:39]}  Bb4 {[%clk 0:01:56]} 17. c3 {[%clk 0:01:37]}  Ba5 {[%clk 0:01:57]} 18. Nh4 {[%clk 0:01:26]}  Qe6 {[%clk 0:01:50]} 19. b4 {[%clk 0:01:18]}  Bb6 {[%clk 0:01:49]} 20. a4 {[%clk 0:01:18]}  a5 {[%clk 0:01:39]} 21. b5 {[%clk 0:01:18]}  Ne7 {[%clk 0:01:40]} 22. c4 {[%clk 0:01:11]}  h6 {[%clk 0:01:12]} 23. Bxe7 {[%clk 0:01:11]}  Qxe7 {[%clk 0:01:13]} 24. c5 {[%clk 0:01:11]}  Bxc5 {[%clk 0:00:58]} 25. Nf5 {[%clk 0:01:10]}  Qe6 {[%clk 0:00:59]} 26. Qg4 {[%clk 0:01:09]}  Bxf2+ {[%clk 0:00:40]} 27. Nxf2 {[%clk 0:01:06]}  g5 {[%clk 0:00:25]} 28. h4 {[%clk 0:00:35]}  Kh7 {[%clk 0:00:23]} 29. hxg5 {[%clk 0:00:29]}  h5 {[%clk 0:00:24]} 30. Qh3 {[%clk 0:00:26]}  Bg6 {[%clk 0:00:24]} 31. Ng3 {[%clk 0:00:22]}  Qb6 {[%clk 0:00:24]} 32. Rd2 {[%clk 0:00:17]}  Rad8 {[%clk 0:00:22]} 33. Rde2 {[%clk 0:00:16]}  Rd3 {[%clk 0:00:16]} 34. Qh4 {[%clk 0:00:15]}  Rd4 {[%clk 0:00:16]} 35. Nge4 {[%clk 0:00:13]}  Rxa4 {[%clk 0:00:08]} 36. Qg3 {[%clk 0:00:12]}  Rf4 {[%clk 0:00:06]} 37. Nf6+ {[%clk 0:00:12]}  Kg7 {[%clk 0:00:07]} 38. Rxe5 {[%clk 0:00:12]}  Bf7 {[%clk 0:00:04]} 39. Re7 {[%clk 0:00:07]}  h4 {[%clk 0:00:05]} 40. Qe3 {[%clk 0:00:06]}  Qxe3 {[%clk 0:00:05]} 41. R1xe3 {[%clk 0:00:06]}  Ra1+ {[%clk 0:00:06]} 42. Re1 {[%clk 0:00:06]}  Rxe1+ {[%clk 0:00:06]} 43. Rxe1 {[%clk 0:00:06]}  Kg6 {[%clk 0:00:06]} 44. N2e4 {[%clk 0:00:06]}  Rf5 {[%clk 0:00:06]} 45. Rc1 {[%clk 0:00:06]}  Rxb5 {[%clk 0:00:04]} 46. Rxc7 {[%clk 0:00:06]}  a4 {[%clk 0:00:05]} 47. Rc3 {[%clk 0:00:04]}  Rb1+ {[%clk 0:00:04]} 48. Kf2 {[%clk 0:00:04]}  b5 {[%clk 0:00:04]} 49. Nc5 {[%clk 0:00:04]}  b4 {[%clk 0:00:04]} 50. Rf3 {[%clk 0:00:03]}  a3 {[%clk 0:00:05]} 51. Ng4 {[%clk 0:00:02]}  a2 {[%clk 0:00:05]} 52. Ne5+ {[%clk 0:00:03]}  Kxg5 {[%clk 0:00:05]} 53. Nxf7+ {[%clk 0:00:03]}  Kg6 {[%clk 0:00:06]} 54. Ne5+ {[%clk 0:00:04]}  Kg5 {[%clk 0:00:06]} 55. Nf7+ {[%clk 0:00:04]}  Kh5 {[%clk 0:00:07]} 56. Ne4 {[%clk 0:00:01]}  Rb2+ {[%clk 0:00:07]} 57. Ke3 {[%clk 0:00:01]}  Rb3+ {[%clk 0:00:08]} 58. Kf4 {[%clk 0:00:02]}  Rxf3+ {[%clk 0:00:09]} 59. gxf3 {[%clk 0:00:03]}  a1=Q {[%clk 0:00:09]} 60. Kf5 {[%clk 0:00:03]}  Qa5+ {[%clk 0:00:08]} 61. Ne5 {[%clk 0:00:02]}  Kh6 {[%clk 0:00:08]} 62. Nf6 {[%clk 0:00:02]}  Kg7 {[%clk 0:00:08]} 63. f4 {[%clk 0:00:03]}  b3 {[%clk 0:00:08]} 64. Ke6 {[%clk 0:00:01]}  Qb6+ {[%clk 0:00:08]} 65. Ke7 {[%clk 0:00:01]}  Qxf6+ {[%clk 0:00:08]} 66. Kd7 {[%clk 0:00:01]}  b2 {[%clk 0:00:09]} 0-1


[Site "https://www.chess.com"]

[Event "Titled Tuesday Blitz March 14 Early 2023"]
[White "Urazayev, Arystanbek"]
[Black "Perez Rodriguez, Jennifer"]
[WhiteFideId "13709810"]
[BlackFideId "3507831"]
[WhiteElo "2479"]
[BlackElo "2170"]
[Result "1-0"]
[Round "05"]
[TimeControl "180+2"]
[Date "2023.03.14"]
[WhiteClock "0:01:42"]
[BlackClock "0:01:15"]

1. d4 {[%clk 0:03:00]}  d5 {[%clk 0:02:57]} 2. c4 {[%clk 0:03:01]}  c6 {[%clk 0:02:57]} 3. Nf3 {[%clk 0:03:01]}  Nf6 {[%clk 0:02:57]} 4. Qc2 {[%clk 0:03:01]}  e6 {[%clk 0:02:56]} 5. Nbd2 {[%clk 0:02:58]}  Nbd7 {[%clk 0:02:54]} 6. e4 {[%clk 0:02:57]}  dxe4 {[%clk 0:02:52]} 7. Nxe4 {[%clk 0:02:58]}  Nxe4 {[%clk 0:02:50]} 8. Qxe4 {[%clk 0:02:59]}  Nf6 {[%clk 0:02:50]} 9. Qc2 {[%clk 0:02:52]}  Bb4+ {[%clk 0:02:49]} 10. Bd2 {[%clk 0:02:52]}  Bxd2+ {[%clk 0:02:44]} 11. Qxd2 {[%clk 0:02:53]}  Ne4 {[%clk 0:02:40]} 12. Qb4 {[%clk 0:02:49]}  Qb6 {[%clk 0:02:30]} 13. a3 {[%clk 0:02:28]}  c5 {[%clk 0:02:26]} 14. Qxb6 {[%clk 0:02:24]}  axb6 {[%clk 0:02:26]} 15. Bd3 {[%clk 0:02:25]}  Nf6 {[%clk 0:02:19]} 16. Kd2 {[%clk 0:02:16]}  Bd7 {[%clk 0:02:14]} 17. b4 {[%clk 0:02:14]}  Bc6 {[%clk 0:02:01]} 18. dxc5 {[%clk 0:01:59]}  Bxf3 {[%clk 0:01:54]} 19. gxf3 {[%clk 0:01:58]}  bxc5 {[%clk 0:01:55]} 20. Kc3 {[%clk 0:01:57]}  cxb4+ {[%clk 0:01:52]} 21. axb4 {[%clk 0:01:57]}  O-O {[%clk 0:01:53]} 22. Be4 {[%clk 0:01:53]}  Nxe4+ {[%clk 0:01:50]} 23. fxe4 {[%clk 0:01:53]}  e5 {[%clk 0:01:41]} 24. c5 {[%clk 0:01:47]}  Rfc8 {[%clk 0:01:32]} 25. Rxa8 {[%clk 0:01:45]}  Rxa8 {[%clk 0:01:32]} 26. Kc4 {[%clk 0:01:45]}  Kf8 {[%clk 0:01:29]} 27. Kb5 {[%clk 0:01:44]}  Ke7 {[%clk 0:01:16]} 28. Kb6 {[%clk 0:01:42]}  Ra4 {[%clk 0:01:15]} 29. Rb1 {[%clk 0:01:42]} 1-0


[Site "https://www.chess.com"]

[Event "Titled Tuesday Blitz March 14 Early 2023"]
[White "Ider, Borya"]
[Black "Krysa, Leandro"]
[WhiteFideId "4901134"]
[BlackFideId "116807"]
[WhiteElo "2512"]
[BlackElo "2485"]
[Result "1-0"]
[Round "05"]
[TimeControl "180+2"]
[Date "2023.03.14"]
[WhiteClock "0:01:03"]
[BlackClock "0:00:24"]

1. Nf3 {[%clk 0:02:54]}  Nf6 {[%clk 0:02:59]} 2. g3 {[%clk 0:02:52]}  g6 {[%clk 0:02:57]} 3. Bg2 {[%clk 0:02:53]}  Bg7 {[%clk 0:02:57]} 4. O-O {[%clk 0:02:54]}  O-O {[%clk 0:02:58]} 5. d4 {[%clk 0:02:52]}  d5 {[%clk 0:02:57]} 6. Bf4 {[%clk 0:02:46]}  c5 {[%clk 0:02:52]} 7. c3 {[%clk 0:02:46]}  Nc6 {[%clk 0:02:49]} 8. dxc5 {[%clk 0:02:44]}  Ne4 {[%clk 0:02:49]} 9. Ng5 {[%clk 0:02:40]}  Nxg5 {[%clk 0:02:44]} 10. Bxg5 {[%clk 0:02:39]}  h6 {[%clk 0:02:44]} 11. Be3 {[%clk 0:02:37]}  d4 {[%clk 0:02:28]} 12. cxd4 {[%clk 0:02:36]}  Nxd4 {[%clk 0:02:29]} 13. Nc3 {[%clk 0:02:33]}  e5 {[%clk 0:02:26]} 14. Ne4 {[%clk 0:02:21]}  Bg4 {[%clk 0:02:16]} 15. Bxd4 {[%clk 0:02:19]}  exd4 {[%clk 0:02:17]} 16. h3 {[%clk 0:02:15]}  Be6 {[%clk 0:02:12]} 17. Nd6 {[%clk 0:02:13]}  Qd7 {[%clk 0:02:13]} 18. Kh2 {[%clk 0:01:59]}  Rab8 {[%clk 0:01:57]} 19. b4 {[%clk 0:01:54]}  b6 {[%clk 0:01:54]} 20. Qc2 {[%clk 0:01:30]}  bxc5 {[%clk 0:01:49]} 21. bxc5 {[%clk 0:01:31]}  d3 {[%clk 0:01:46]} 22. exd3 {[%clk 0:01:31]}  Bxa1 {[%clk 0:01:45]} 23. Rxa1 {[%clk 0:01:32]}  Rb4 {[%clk 0:01:33]} 24. Qc3 {[%clk 0:01:25]}  Rfb8 {[%clk 0:01:30]} 25. d4 {[%clk 0:01:20]}  Rb1 {[%clk 0:00:53]} 26. Rxb1 {[%clk 0:01:16]}  Rxb1 {[%clk 0:00:54]} 27. d5 {[%clk 0:01:14]}  Bf5 {[%clk 0:00:50]} 28. Qf6 {[%clk 0:01:04]}  Qa4 {[%clk 0:00:27]} 29. Qxf7+ {[%clk 0:01:02]}  Kh8 {[%clk 0:00:27]} 30. Nxf5 {[%clk 0:01:01]}  gxf5 {[%clk 0:00:23]} 31. Qf8+ {[%clk 0:01:01]}  Kh7 {[%clk 0:00:23]} 32. Qxf5+ {[%clk 0:01:02]}  Kg7 {[%clk 0:00:24]} 33. Qxb1 {[%clk 0:01:03]} 1-0


[Site "https://www.chess.com"]

[Event "Titled Tuesday Blitz March 14 Early 2023"]
[White "Prokofiev, Valentyn"]
[Black "Zahid, Sanatan"]
[WhiteFideId "14160161"]
[BlackFideId "10201963"]
[WhiteElo "2260"]
[BlackElo "1865"]
[Result "0-1"]
[Round "05"]
[TimeControl "180+2"]
[Date "2023.03.14"]
[WhiteClock "0:01:19"]
[BlackClock "0:01:43"]

1. d4 {[%clk 0:03:00]}  e6 {[%clk 0:02:59]} 2. c4 {[%clk 0:02:58]}  b6 {[%clk 0:02:59]} 3. Nc3 {[%clk 0:02:55]}  Bb7 {[%clk 0:02:59]} 4. d5 {[%clk 0:02:55]}  Bb4 {[%clk 0:02:58]} 5. e4 {[%clk 0:02:42]}  Bxc3+ {[%clk 0:02:54]} 6. bxc3 {[%clk 0:02:43]}  d6 {[%clk 0:02:54]} 7. dxe6 {[%clk 0:02:29]}  fxe6 {[%clk 0:02:53]} 8. e5 {[%clk 0:02:30]}  Ne7 {[%clk 0:02:50]} 9. Ne2 {[%clk 0:02:15]}  O-O {[%clk 0:02:49]} 10. Ng3 {[%clk 0:02:13]}  dxe5 {[%clk 0:02:45]} 11. Qc2 {[%clk 0:02:13]}  Nd7 {[%clk 0:02:33]} 12. Bg5 {[%clk 0:02:11]}  h6 {[%clk 0:02:32]} 13. Bd2 {[%clk 0:02:05]}  Nc5 {[%clk 0:02:27]} 14. O-O-O {[%clk 0:02:05]}  Qe8 {[%clk 0:02:25]} 15. Be3 {[%clk 0:02:05]}  Nf5 {[%clk 0:02:11]} 16. Bxc5 {[%clk 0:02:03]}  bxc5 {[%clk 0:02:12]} 17. Ne4 {[%clk 0:01:54]}  Bxe4 {[%clk 0:02:07]} 18. Qxe4 {[%clk 0:01:55]}  Qa4 {[%clk 0:02:05]} 19. Qc2 {[%clk 0:01:55]}  Qa3+ {[%clk 0:01:59]} 20. Qb2 {[%clk 0:01:55]}  Qa5 {[%clk 0:01:59]} 21. Bd3 {[%clk 0:01:31]}  Rab8 {[%clk 0:01:57]} 22. Qa1 {[%clk 0:01:31]}  Qa3+ {[%clk 0:01:51]} 23. Kc2 {[%clk 0:01:32]}  Nd4+ {[%clk 0:01:44]} 24. cxd4 {[%clk 0:01:19]}  Rb2+ {[%clk 0:01:43]} 0-1


[Site "https://www.chess.com"]

[Event "Titled Tuesday Blitz March 14 Early 2023"]
[White "Pakleza, Zbigniew"]
[Black "Vlassov, Nikolai"]
[WhiteFideId "1119290"]
[BlackFideId "4103360"]
[WhiteElo "2410"]
[BlackElo "2324"]
[Result "1-0"]
[Round "05"]
[TimeControl "180+2"]
[Date "2023.03.14"]
[WhiteClock "0:00:08"]
[BlackClock "0:00:04"]

1. d4 {[%clk 0:03:00]}  Nf6 {[%clk 0:02:57]} 2. Nf3 {[%clk 0:03:00]}  e6 {[%clk 0:02:57]} 3. Bf4 {[%clk 0:03:00]}  c5 {[%clk 0:02:57]} 4. c3 {[%clk 0:03:00]}  b6 {[%clk 0:02:57]} 5. Nbd2 {[%clk 0:03:00]}  Bb7 {[%clk 0:02:57]} 6. e3 {[%clk 0:03:00]}  Be7 {[%clk 0:02:56]} 7. h3 {[%clk 0:03:00]}  h6 {[%clk 0:02:55]} 8. Bd3 {[%clk 0:03:00]}  d6 {[%clk 0:02:55]} 9. Qe2 {[%clk 0:02:59]}  Nbd7 {[%clk 0:02:55]} 10. e4 {[%clk 0:02:58]}  Qc7 {[%clk 0:02:54]} 11. O-O {[%clk 0:02:54]}  g5 {[%clk 0:02:53]} 12. Bh2 {[%clk 0:02:51]}  g4 {[%clk 0:02:54]} 13. hxg4 {[%clk 0:02:52]}  Nxg4 {[%clk 0:02:54]} 14. Bg3 {[%clk 0:02:53]}  h5 {[%clk 0:02:50]} 15. d5 {[%clk 0:02:22]}  O-O-O {[%clk 0:02:44]} 16. c4 {[%clk 0:02:06]}  h4 {[%clk 0:02:30]} 17. Nxh4 {[%clk 0:01:34]}  Rdg8 {[%clk 0:02:23]} 18. Ndf3 {[%clk 0:01:20]}  Nde5 {[%clk 0:02:05]} 19. Rfd1 {[%clk 0:00:51]}  Rg7 {[%clk 0:01:20]} 20. Nxe5 {[%clk 0:00:44]}  dxe5 {[%clk 0:01:12]} 21. Nf3 {[%clk 0:00:44]}  Rgh7 {[%clk 0:01:08]} 22. Kf1 {[%clk 0:00:44]}  Bf6 {[%clk 0:00:46]} 23. Qc2 {[%clk 0:00:37]}  Kb8 {[%clk 0:00:24]} 24. Ke2 {[%clk 0:00:36]}  a6 {[%clk 0:00:24]} 25. a3 {[%clk 0:00:34]}  Ka7 {[%clk 0:00:24]} 26. b4 {[%clk 0:00:32]}  Qe7 {[%clk 0:00:15]} 27. Rab1 {[%clk 0:00:26]}  Rc8 {[%clk 0:00:14]} 28. Qb3 {[%clk 0:00:23]}  Rhh8 {[%clk 0:00:14]} 29. Rdc1 {[%clk 0:00:21]}  exd5 {[%clk 0:00:13]} 30. cxd5 {[%clk 0:00:21]}  Bg7 {[%clk 0:00:12]} 31. bxc5 {[%clk 0:00:19]}  b5 {[%clk 0:00:13]} 32. c6 {[%clk 0:00:16]}  Ba8 {[%clk 0:00:13]} 33. Nh4 {[%clk 0:00:15]}  Nh6 {[%clk 0:00:08]} 34. a4 {[%clk 0:00:11]}  Rb8 {[%clk 0:00:07]} 35. axb5 {[%clk 0:00:11]}  Rb6 {[%clk 0:00:06]} 36. f3 {[%clk 0:00:09]}  f5 {[%clk 0:00:06]} 37. Bf2 {[%clk 0:00:08]}  Qc7 {[%clk 0:00:05]} 38. bxa6 {[%clk 0:00:08]}  Rb8 {[%clk 0:00:04]} 39. Nxf5 {[%clk 0:00:07]}  Nxf5 {[%clk 0:00:03]} 40. exf5 {[%clk 0:00:08]}  e4 {[%clk 0:00:04]} 41. fxe4 {[%clk 0:00:08]} 1-0


[Site "https://www.chess.com"]

[Event "Titled Tuesday Blitz March 14 Early 2023"]
[White "Jaskolka, Tomasz"]
[Black "Lobanov, Sergei"]
[WhiteFideId "1170791"]
[BlackFideId "24183750"]
[WhiteElo "2155"]
[BlackElo "2489"]
[Result "0-1"]
[Round "05"]
[TimeControl "180+2"]
[Date "2023.03.14"]
[WhiteClock "0:00:08"]
[BlackClock "0:00:40"]

1. d4 {[%clk 0:03:00]}  Nf6 {[%clk 0:02:58]} 2. Bf4 {[%clk 0:02:59]}  d5 {[%clk 0:02:58]} 3. e3 {[%clk 0:03:00]}  c5 {[%clk 0:02:58]} 4. c3 {[%clk 0:03:00]}  Nc6 {[%clk 0:02:56]} 5. Nd2 {[%clk 0:03:00]}  e6 {[%clk 0:02:56]} 6. Ngf3 {[%clk 0:03:00]}  Be7 {[%clk 0:02:56]} 7. Bd3 {[%clk 0:03:00]}  Nh5 {[%clk 0:02:49]} 8. Bg3 {[%clk 0:02:49]}  O-O {[%clk 0:02:45]} 9. Ne5 {[%clk 0:02:38]}  g6 {[%clk 0:02:41]} 10. f4 {[%clk 0:02:26]}  f5 {[%clk 0:01:59]} 11. Bf2 {[%clk 0:02:21]}  Nf6 {[%clk 0:01:59]} 12. Qe2 {[%clk 0:02:13]}  Bd7 {[%clk 0:01:56]} 13. O-O {[%clk 0:02:02]}  Nxe5 {[%clk 0:01:51]} 14. fxe5 {[%clk 0:01:58]}  Ne4 {[%clk 0:01:51]} 15. Nxe4 {[%clk 0:01:30]}  fxe4 {[%clk 0:01:49]} 16. Bc2 {[%clk 0:01:31]}  b5 {[%clk 0:01:48]} 17. Qg4 {[%clk 0:01:27]}  b4 {[%clk 0:01:44]} 18. h4 {[%clk 0:01:24]}  Rf5 {[%clk 0:01:43]} 19. Bg3 {[%clk 0:01:20]}  bxc3 {[%clk 0:01:35]} 20. bxc3 {[%clk 0:01:20]}  Rc8 {[%clk 0:01:34]} 21. Bb3 {[%clk 0:01:10]}  Kh8 {[%clk 0:01:21]} 22. h5 {[%clk 0:00:59]}  Rxh5 {[%clk 0:01:11]} 23. Rf7 {[%clk 0:00:59]}  Rf5 {[%clk 0:01:11]} 24. Rf1 {[%clk 0:00:54]}  Qe8 {[%clk 0:01:11]} 25. R7xf5 {[%clk 0:00:26]}  gxf5 {[%clk 0:01:11]} 26. Qh3 {[%clk 0:00:22]}  Qg6 {[%clk 0:01:07]} 27. Bh4 {[%clk 0:00:20]}  Bg5 {[%clk 0:00:58]} 28. Bxg5 {[%clk 0:00:16]}  Qxg5 {[%clk 0:00:59]} 29. Kh2 {[%clk 0:00:16]}  cxd4 {[%clk 0:00:55]} 30. cxd4 {[%clk 0:00:16]}  Rc3 {[%clk 0:00:55]} 31. Re1 {[%clk 0:00:14]}  f4 {[%clk 0:00:53]} 32. Bxd5 {[%clk 0:00:09]}  exd5 {[%clk 0:00:39]} 33. Qxd7 {[%clk 0:00:09]}  Qg3+ {[%clk 0:00:39]} 34. Kg1 {[%clk 0:00:08]}  Qxe1+ {[%clk 0:00:40]} 35. Kh2 {[%clk 0:00:08]}  Qh4+ {[%clk 0:00:40]} 36. Kg1 {[%clk 0:00:08]}  Rc1# {[%clk 0:00:40]} 0-1


[Site "https://www.chess.com"]

[Event "Titled Tuesday Blitz March 14 Early 2023"]
[White "Khoroshev, Nikita"]
[Black "Reprintsev, Alexander"]
[WhiteFideId "14200287"]
[BlackFideId "14100541"]
[WhiteElo "2354"]
[BlackElo "2229"]
[Result "0-1"]
[Round "05"]
[TimeControl "180+2"]
[Date "2023.03.14"]
[WhiteClock "0:00:02"]
[BlackClock "0:00:36"]

1. e4 {[%clk 0:03:00]}  e5 {[%clk 0:02:58]} 2. Nf3 {[%clk 0:02:59]}  Nc6 {[%clk 0:02:57]} 3. Nc3 {[%clk 0:02:59]}  Bc5 {[%clk 0:02:53]} 4. Nxe5 {[%clk 0:02:57]}  Nxe5 {[%clk 0:02:52]} 5. d4 {[%clk 0:02:57]}  Bd6 {[%clk 0:02:52]} 6. dxe5 {[%clk 0:02:56]}  Bxe5 {[%clk 0:02:52]} 7. Bd3 {[%clk 0:02:57]}  Nf6 {[%clk 0:02:50]} 8. O-O {[%clk 0:02:55]}  O-O {[%clk 0:02:49]} 9. Ne2 {[%clk 0:02:46]}  d5 {[%clk 0:02:33]} 10. f4 {[%clk 0:02:46]}  Bd6 {[%clk 0:02:33]} 11. e5 {[%clk 0:02:45]}  Bc5+ {[%clk 0:02:33]} 12. Kh1 {[%clk 0:02:45]}  Ne4 {[%clk 0:02:32]} 13. Qe1 {[%clk 0:02:45]}  f5 {[%clk 0:02:22]} 14. c3 {[%clk 0:02:37]}  Qe8 {[%clk 0:02:11]} 15. Nd4 {[%clk 0:02:33]}  Qh5 {[%clk 0:02:07]} 16. Be3 {[%clk 0:02:28]}  Be7 {[%clk 0:02:06]} 17. Kg1 {[%clk 0:01:39]}  Bd7 {[%clk 0:02:04]} 18. b4 {[%clk 0:01:37]}  c6 {[%clk 0:02:02]} 19. a4 {[%clk 0:01:32]}  b6 {[%clk 0:02:02]} 20. Nf3 {[%clk 0:01:28]}  c5 {[%clk 0:01:59]} 21. b5 {[%clk 0:01:19]}  Rac8 {[%clk 0:01:54]} 22. c4 {[%clk 0:01:17]}  Be6 {[%clk 0:01:52]} 23. Qc1 {[%clk 0:01:05]}  Qf7 {[%clk 0:01:49]} 24. a5 {[%clk 0:00:52]}  dxc4 {[%clk 0:01:44]} 25. Bxe4 {[%clk 0:00:52]}  fxe4 {[%clk 0:01:45]} 26. Nd2 {[%clk 0:00:52]}  Bd5 {[%clk 0:01:42]} 27. f5 {[%clk 0:00:53]}  Bd8 {[%clk 0:01:38]} 28. axb6 {[%clk 0:00:52]}  Bxb6 {[%clk 0:01:38]} 29. Qc3 {[%clk 0:00:48]}  Rcd8 {[%clk 0:01:35]} 30. Rf4 {[%clk 0:00:43]}  Bb7 {[%clk 0:01:23]} 31. e6 {[%clk 0:00:37]}  Qc7 {[%clk 0:01:22]} 32. Qxc4 {[%clk 0:00:16]}  Kh8 {[%clk 0:01:13]} 33. Raf1 {[%clk 0:00:13]}  Rd3 {[%clk 0:01:11]} 34. Rxe4 {[%clk 0:00:11]}  Bxe4 {[%clk 0:01:08]} 35. Qxe4 {[%clk 0:00:12]}  Qd6 {[%clk 0:00:48]} 36. Nc4 {[%clk 0:00:06]}  Qd5 {[%clk 0:00:46]} 37. Qg4 {[%clk 0:00:06]}  Rxe3 {[%clk 0:00:41]} 38. Nxe3 {[%clk 0:00:07]}  c4 {[%clk 0:00:42]} 39. Re1 {[%clk 0:00:02]}  c3 {[%clk 0:00:36]} 0-1


[Site "https://www.chess.com"]